Workbook

Sheet Language

Sheet Exh 1-2
C1: Exhibit 1. P&L company LoA
A2: Profit and Loss Statement
A3: (million Brazilian real) | B3: 2022 | C3: =B3+1 -> 2023 | D3: =C3+1 -> 2024 | I3: =B3 -> 2022 | J3: =C3 -> 2023 | K3: =D3 -> 2024
A4: Sales | B4: 100 | C4: =B4*(1+C83) -> 140 | D4: =C4*(1+D83) -> 175 | I4: =B4/B$4 -> 1 | J4: =C4/C$4 -> 1 | K4: =D4/D$4 -> 1
A5: COGS | B5: =B4*B84 -> 80 | C5: =C4*C84 -> 113.4 | D5: =D4*D84 -> 143.5 | I5: 0.8 | J5: 0.81 | K5: 0.82
A6: Gross Margin | B6: =B4-B5 -> 20 | C6: =C4-C5 -> 26.6 | D6: =D4-D5 -> 31.5 | I6: 0.2 | J6: 0.19 | K6: 0.18
A7: Salaries | B7: =B85 -> 5 | C7: =B7+(1+C87) -> 6.06 | D7: =C7+(1+D87) -> 7.13 | I7: 0.05 | J7: 0.04328571429 | K7: 0.04074285714
A8: Overhead | B8: =B86 -> 5 | C8: =B8+(1+C87) -> 6.06 | D8: =C8+(1+D87) -> 7.13 | I8: 0.05 | J8: 0.04328571429 | K8: 0.04074285714
A9: Opex, Operating Expenses | B9: =B7+B8 -> 10 | C9: =C7+C8 -> 12.12 | D9: =D7+D8 -> 14.26 | I9: 0.1 | J9: 0.08657142857 | K9: 0.08148571429
A10: EBITDA | B10: =B6-B9 -> 10 | C10: =C6-C9 -> 14.48 | D10: =D6-D9 -> 17.24 | I10: 0.1 | J10: 0.1034285714 | K10: 0.09851428571
A11: Depreciation | B11: 2 | C11: =C89*B39 -> 2 | D11: =D89*C39 -> 2.1 | I11: 0.02 | J11: 0.01428571429 | K11: 0.012
A12: EBIT | B12: =B10-B11 -> 8 | C12: =C10-C11 -> 12.48 | D12: =D10-D11 -> 15.14 | I12: 0.08 | J12: 0.08914285714 | K12: 0.08651428571
A13: Financial Expenses | B13: =B88*(B47+B45) -> 2 | C13: =C88*(C47+C45) -> 2.288327763 | D13: =D88*(D47+D45) -> 4.233508094 | I13: 0.02 | J13: 0.01634519831 | K13: 0.02419147482
A14: EBT | B14: =B12-B13 -> 6 | C14: =C12-C13 -> 10.19167224 | D14: =D12-D13 -> 10.90649191 | I14: 0.06 | J14: 0.07279765883 | K14: 0.06232281089
A15: Taxes (25%) | B15: =B14*B90 -> 1.5 | C15: =C14*C90 -> 2.547918059 | D15: =D14*D90 -> 2.726622976 | I15: 0.015 | J15: 0.01819941471 | K15: 0.01558070272
A16: Net Income | B16: =B14-B15 -> 4.5 | C16: =C14-C15 -> 7.643754177 | D16: =D14-D15 -> 8.179868929 | I16: 0.045 | J16: 0.05459824412 | K16: 0.04674210817
A18: P&L Ratios
A19: Growth of Sales | B19: 0.7 | C19: =C4/B4-1 -> 0.4 | D19: =D4/C4-1 -> 0.25 | E19: =AVERAGE(B19:D19) -> 0.45 | F19: average growth
A20: Gross Margin / Sales | B20: =B6/B4 -> 0.2 | C20: =C6/C4 -> 0.19 | D20: =D6/D4 -> 0.18 | E20: =(D20-B20)*100 -> -2 | F20: pp, percentage points
A21: Opex / Sales | B21: =B9/B4 -> 0.1 | C21: =C9/C4 -> 0.08657142857 | D21: =D9/D4 -> 0.08148571429 | E21: =(D21-B21)*100 -> -1.851428571 | F21: pp
A22: Increase of Opex | B22: 0.2 | C22: =C9/B9-1 -> 0.212 | D22: =D9/C9-1 -> 0.1765676568 | E22: =AVERAGE(B22:D22) -> 0.1961892189 | F22: average increase
A23: EBITDA / Sales | B23: =B10/B4 -> 0.1 | C23: =C10/C4 -> 0.1034285714 | D23: =D10/D4 -> 0.09851428571 | E23: =(D23-B23)*100 -> -0.1485714286 | F23: pp
A24: ROS, Net Income / Sales | B24: =B16/B4 -> 0.045 | C24: =C16/C4 -> 0.05459824412 | D24: =D16/D4 -> 0.04674210817 | E24: ROS, Return on Sales
A25: ROA, Net Income / total assets | B25: =B16/B40 -> 0.07707648991 | C25: =C16/C40 -> 0.1113005256 | D25: =D16/D40 -> 0.08859501956 | E25: ROA, Return on Assets
A26: RONA, EBIT / Net Assets | B26: =B12/B59 -> 0.1467889908 | C26: =C12/C59 -> 0.1982628683 | D26: =D12/D59 -> 0.1768632554 | E26: RONA, Return on Net Assets
A27: ROE, Net Income / Equity | B27: =B16/B48 -> 0.15 | C27: =C16/C48 -> 0.2215580921 | D27: =D16/D48 -> 0.1940944534 | E27: ROE, Return on Equity
A28: CFO Cash Flow from Operations | B28: =B16+B11 -> 6.5 | C28: =C16+C11 -> 9.643754177 | D28: =D16+D11 -> 10.27986893 | E28: CFO =Net Income + Depreciation
A29: Inflation | B29: 0.09 | C29: 0.1 | D29: 0.11
A30: Interest rate | B30: =B13/B61 -> 0.1 | C30: =C13/C61 -> 0.11 | D30: =D13/D61 -> 0.12
C32: Exhibit 2. Balance sheet company LoA
A33: Assets | F33: 2022-24
A34: =A3 -> (million Brazilian real) | B34: =B3 -> 2022 | C34: =C3 -> 2023 | D34: =D3 -> 2024 | F34: Differences
A35: Cash | B35: =MAX(B50-B36-B37-B39,B100) -> 7.150684932 | C35: =MAX(C50-C36-C37-C39,C100) -> 0 | D35: =MAX(D50-D36-D37-D39,D100) -> 7.105427358e-15 | F35: =D35-B35 -> -7.150684932
A36: Receivables | B36: =B4/365*B93 -> 24.65753425 | C36: 38.35616438 | D36: 57.53424658 | F36: =D36-B36 -> 32.87671233
A37: Inventory | B37: 6.575342466 | C37: 9.320547945 | D37: 11.79452055 | F37: =D37-B37 -> 5.219178082
A38: Current Assets, CA | B38: =SUM(B35:B37) -> 38.38356164 | C38: =SUM(C35:C37) -> 47.67671233 | D38: =SUM(D35:D37) -> 69.32876712
A39: Fixed (non current) Assets net, FA | B39: 20 | C39: =B39+C97 -> 21 | D39: =C39+D97 -> 23 | F39: =D39-B39 -> 3
A40: Total Assets | B40: =B38+B39 -> 58.38356164 | C40: =C38+C39 -> 68.67671233 | D40: =D38+D39 -> 92.32876712
A42: Liabilities + Equity
A43: Payables | B43: =B52/365*B95 -> 2.383561644 | C43: =C52/365*C95 -> 3.182060424 | D43: =D52/365*D95 -> 3.999286921 | F43: =D43-B43 -> 1.615725277
A44: Other Liabilities | B44: =B15 -> 1.5 | C44: =C15 -> 2.547918059 | D44: =D15 -> 2.726622976 | F44: =D44-B44 -> 1.226622976
A45: Bank Credit | B45: =MAX(B66-B67,0) -> 0 | C45: =MAX(C66-C67,0) -> 5.802979668 | D45: =MAX(D66-D67,0) -> 25.27923412 | F45: =D45-B45 -> 25.27923412
A46: Current Liabilities | B46: =B43+B44+B45 -> 3.883561644 | C46: =C43+C44+C45 -> 11.53295815 | D46: =D43+D44+D45 -> 32.00514402
A47: Loan (Long-term Debt) | B47: 20 | C47: =B47+C98 -> 15 | D47: =C47+D98 -> 10 | F47: =D47-B47 -> -10
A48: Equity + Reserves | B48: 30 | C48: =B48+B49*(1-B99) -> 34.5 | D48: =C48+C49*(1-C99) -> 42.14375418 | F48: =D48-B48 -> 12.14375418
A49: Net Income of the year | B49: =B16 -> 4.5 | C49: =C16 -> 7.643754177 | D49: =D16 -> 8.179868929 | F49: =D49-B49 -> 3.679868929
A50: Total Liabilities + Equity | B50: =B46+B47+B48+B49 -> 58.38356164 | C50: =C46+C47+C48+C49 -> 68.67671233 | D50: =D46+D47+D48+D49 -> 92.32876712
A52: Purchases | B52: 87 | C52: =C5+(C37-B37) -> 116.1452055 | D52: =D5+(D37-C37) -> 145.9739726 | E52: COGS + inventory variation
A53: Capex o new investments in FA | C53: =C39-B39+C11 -> 3 | D53: =D39-C39+D11 -> 4.1 | E53: Change in FA + depreciation
A55: Short Balance Sheet | B55: =B3 -> 2022 | C55: =C3 -> 2023 | D55: =D3 -> 2024 | F55: =F34 -> Differences
A56: Cash Surplus | B56: =B35-B100 -> 7.150684932 | C56: =C35-C100 -> 0 | D56: =D35-D100 -> 7.105427358e-15 | F56: =D56-B56 -> -7.150684932
A57: NFO or Net Current Assets | B57: =B100+B36+B37-B43-B44 -> 27.34931507 | C57: =C100+C36+C37-C43-C44 -> 41.94673385 | D57: =D100+D36+D37-D43-D44 -> 62.60285723 | F57: =D57-B57 -> 35.25354216
A58: FA or Fixed Assets Net | B58: =B39 -> 20 | C58: =C39 -> 21 | D58: =D39 -> 23 | F58: =D58-B58 -> 3
A59: NA, Net Assets | B59: =B56+B57+B58 -> 54.5 | C59: =C56+C57+C58 -> 62.94673385 | D59: =D56+D57+D58 -> 85.60285723
A61: D, Debt (long & short term) | B61: =B45+B47 -> 20 | C61: =C45+C47 -> 20.80297967 | D61: =D45+D47 -> 35.27923412 | F61: =D61-B61 -> 15.27923412
A62: E, Equity | B62: =B48+B49 -> 34.5 | C62: =C48+C49 -> 42.14375418 | D62: =D48+D49 -> 50.32362311 | F62: =D62-B62 -> 15.82362311
A63: Total Financing | B63: =B61+B62 -> 54.5 | C63: =C61+C62 -> 62.94673385 | D63: =D61+D62 -> 85.60285723
A65: Shortest Balance Sheet: NFO vs WC
A66: NFO | B66: =B57 -> 27.34931507 | C66: =C57 -> 41.94673385 | D66: 62.60285723 | F66: =D66-B66 -> 35.25354216
A67: WC | B67: =B47+B48+B49-B39 -> 34.5 | C67: =C47+C48+C49-C39 -> 36.14375418 | D67: =D47+D48+D49-D39 -> 37.32362311 | F67: =D67-B67 -> 2.823623107
A68: Cash Surplus (+) | B68: =B67-B66 -> 7.150684932 | C68: =C67-C66 -> -5.802979668 | D68: =D67-D66 -> -25.27923412 | F68: =D68-B68 -> -32.42991905
A69: Credit Needed (-)
A71: Balance Sheet Ratios | B71: =B55 -> 2022 | C71: =C55 -> 2023 | D71: 2024 | F71: In % of Sales 2024
A72: Receivables in Days | B72: =B36/B4*365 -> 90 | C72: 100 | D72: 120 | G72: Receivables = | H72: =D36/D4 -> 0.3287671233
A73: Inventory in Days | B73: 30 | C73: 30 | D73: 30 | G73: Inventory = | H73: =D37/D4 -> 0.06739726027
A74: Payables in Days | B74: =B43/B52*365 -> 10 | C74: =C43/C52*365 -> 10 | D74: =D43/D52*365 -> 10 | G74: Payables + other = | H74: =(D43+D44)/D4 -> 0.03843377084
A75: NFO / Sales in % | B75: =B66/B4 -> 0.2734931507 | C75: =C66/C4 -> 0.2996195275 | D75: =D66/D4 -> 0.3577306127 | G75: NFO = | H75: =H72+H73-H74 -> 0.3577306127
A76: Leverage = Liabilities. / Equity | B76: =(B46+B47)/B62 -> 0.6922771491 | C76: =(C46+C47)/C62 -> 0.6295822161 | D76: =(D46+D47)/D62 -> 0.8347003142
A77: Debt / EBITDA | B77: =B61/B10 -> 2 | C77: =C61/C10 -> 1.436669867 | D77: =D61/D10 -> 2.046359288
A78: Debt / Net Income | B78: =B61/B16 -> 4.444444444 | C78: =C61/C16 -> 2.721565763 | D78: =D61/D16 -> 4.312933914
A80: ASSUMPTIONS IN BOLD FONT
A82: ASSUMPTIONS FOR THE P&L
A83: Sales growth | B83: na | C83: 0.4 | D83: 0.25
A84: COGS in % | B84: 0.8 | C84: 0.81 | D84: 0.82
A85: Salaries | B85: 5
A86: Overhead | B86: 5
A87: Increase of Opex | B87: 0.05 | C87: 0.06 | D87: 0.07
A88: Interest | B88: 0.1 | C88: 0.11 | D88: 0.12
A89: Depreciation | B89: 0.1 | C89: =B89 -> 0.1 | D89: =C89 -> 0.1
A90: Taxes | B90: 0.25 | C90: =B90 -> 0.25 | D90: =C90 -> 0.25
A92: ASSUMPTIONS FOR THE BALANCE SHEET
A93: Receivables. Days | B93: 90 | C93: 100 | D93: 120
A94: Inventory. Days | B94: 30 | C94: 30 | D94: 30
A95: Payables. Days | B95: 10 | C95: 10 | D95: 10
A97: Increase of net FA | C97: 1 | D97: 2
A98: Increased of Long Term Debt | C98: -5 | D98: -5
A99: Pay out | B99: 0 | C99: 0 | D99: 0
A100: Minimum cash | B100: 0 | C100: 0 | D100: 0

Sheet Anex 1-2 (hidden)
C1: Anexo 1. PyG de la empresa LoA
A2: Cuenta de PyG
A3: (millones de reales) | B3: 2022 | C3: =B3+1 -> 2023 | D3: =C3+1 -> 2024 | I3: =B3 -> 2022 | J3: =C3 -> 2023 | K3: =D3 -> 2024
A4: Ventas | B4: 100 | C4: =B4*(1+C83) -> 140 | D4: =C4*(1+D83) -> 175 | I4: =B4/B$4 -> 1 | J4: =C4/C$4 -> 1 | K4: =D4/D$4 -> 1
A5: CMV | B5: =B4*B84 -> 80 | C5: =C4*C84 -> 113.4 | D5: =D4*D84 -> 143.5 | I5: 0.8 | J5: 0.81 | K5: 0.82
A6: Margen bruto | B6: =B4-B5 -> 20 | C6: =C4-C5 -> 26.6 | D6: =D4-D5 -> 31.5 | I6: 0.2 | J6: 0.19 | K6: 0.18
A7: Salarios | B7: =B85 -> 5 | C7: =B7+(1+C87) -> 6.06 | D7: =C7+(1+D87) -> 7.13 | I7: 0.05 | J7: 0.04328571429 | K7: 0.04074285714
A8: Gastos generales | B8: =B86 -> 5 | C8: =B8+(1+C87) -> 6.06 | D8: =C8+(1+D87) -> 7.13 | I8: 0.05 | J8: 0.04328571429 | K8: 0.04074285714
A9: Opex o Gastos operativos (de estrucutra) | B9: =B7+B8 -> 10 | C9: =C7+C8 -> 12.12 | D9: =D7+D8 -> 14.26 | I9: 0.1 | J9: 0.08657142857 | K9: 0.08148571429
A10: EBITDA | B10: =B6-B9 -> 10 | C10: =C6-C9 -> 14.48 | D10: =D6-D9 -> 17.24 | I10: 0.1 | J10: 0.1034285714 | K10: 0.09851428571
A11: Amortización | B11: 2 | C11: =C89*B39 -> 2 | D11: =D89*C39 -> 2.1 | I11: 0.02 | J11: 0.01428571429 | K11: 0.012
A12: EBIT o BAIT | B12: =B10-B11 -> 8 | C12: =C10-C11 -> 12.48 | D12: =D10-D11 -> 15.14 | I12: 0.08 | J12: 0.08914285714 | K12: 0.08651428571
A13: Gastos financieros | B13: =B88*(B47+B45) -> 2 | C13: =C88*(C47+C45) -> 2.288327763 | D13: =D88*(D47+D45) -> 4.233508094 | I13: 0.02 | J13: 0.01634519831 | K13: 0.02419147482
A14: EBT o BAT Benef antes de impuestos | B14: =B12-B13 -> 6 | C14: =C12-C13 -> 10.19167224 | D14: =D12-D13 -> 10.90649191 | I14: 0.06 | J14: 0.07279765883 | K14: 0.06232281089
A15: Impuestos (25%) | B15: =B14*B90 -> 1.5 | C15: =C14*C90 -> 2.547918059 | D15: =D14*D90 -> 2.726622976 | I15: 0.015 | J15: 0.01819941471 | K15: 0.01558070272
A16: BN Beneficio neto o Resultado | B16: =B14-B15 -> 4.5 | C16: =C14-C15 -> 7.643754177 | D16: =D14-D15 -> 8.179868929 | I16: 0.045 | J16: 0.05459824412 | K16: 0.04674210817
A18: Ratios de cuenta de resultados
A19: Crecimiento de ventas | B19: 0.7 | C19: =C4/B4-1 -> 0.4 | D19: =D4/C4-1 -> 0.25 | E19: =AVERAGE(B19:D19) -> 0.45 | F19: Media de crecimiento ventas
A20: Margen bruto / Ventas | B20: =B6/B4 -> 0.2 | C20: =C6/C4 -> 0.19 | D20: =D6/D4 -> 0.18 | E20: =(D20-B20)*100 -> -2 | F20: pp, puntos porcentuales
A21: Opex / Ventas | B21: =B9/B4 -> 0.1 | C21: =C9/C4 -> 0.08657142857 | D21: =D9/D4 -> 0.08148571429 | E21: =(D21-B21)*100 -> -1.851428571 | F21: pp
A22: Aumento de Opex | B22: 0.2 | C22: =C9/B9-1 -> 0.212 | D22: =D9/C9-1 -> 0.1765676568 | E22: =AVERAGE(B22:D22) -> 0.1961892189 | F22: media de 2 años
A23: EBITDA / Ventas | B23: =B10/B4 -> 0.1 | C23: =C10/C4 -> 0.1034285714 | D23: =D10/D4 -> 0.09851428571 | E23: =(D23-B23)*100 -> -0.1485714286 | F23: pp
A24: ROS, Beneficio / ventas | B24: =B16/B4 -> 0.045 | C24: =C16/C4 -> 0.05459824412 | D24: =D16/D4 -> 0.04674210817 | E24: Rentabilidad s/ ventas
A25: ROA, Benef. / activo total | B25: =B16/B40 -> 0.07707648991 | C25: =C16/C40 -> 0.1113005256 | D25: =D16/D40 -> 0.08859501956 | E25: Rentabilidad del activo total
A26: RONA, EBIT / activo neto | B26: =B12/B59 -> 0.1467889908 | C26: =C12/C59 -> 0.1982628683 | D26: =D12/D59 -> 0.1768632554 | E26: Rentabilidad del activo neto
A27: ROE, Beneficio / Equity | B27: =B16/B48 -> 0.15 | C27: =C16/C48 -> 0.2215580921 | D27: =D16/D48 -> 0.1940944534 | E27: Rentab del capital (equity)
A28: CFO = Beneficio neto + amortización | B28: =B16+B11 -> 6.5 | C28: =C16+C11 -> 9.643754177 | D28: =D16+D11 -> 10.27986893 | E28: CFO cash flow operaciones
A29: Inflación | B29: 0.09 | C29: 0.1 | D29: 0.11
A30: Tipo de interés | B30: =B13/B61 -> 0.1 | C30: =C13/C61 -> 0.11 | D30: =D13/D61 -> 0.12
C32: Anexo 2. Balances de la empresa LoA
A33: Activo | F33: 2022-24
A34: =A3 -> (millones de reales) | B34: =B3 -> 2022 | C34: =C3 -> 2023 | D34: =D3 -> 2024 | F34: Diferencias
A35: Caja | B35: =MAX(B50-B36-B37-B39,B100) -> 7.150684932 | C35: =MAX(C50-C36-C37-C39,C100) -> 0 | D35: =MAX(D50-D36-D37-D39,D100) -> 7.105427358e-15 | F35: =D35-B35 -> -7.150684932
A36: Clientes | B36: =B4/365*B93 -> 24.65753425 | C36: 38.35616438 | D36: 57.53424658 | F36: =D36-B36 -> 32.87671233
A37: Existencias | B37: 6.575342466 | C37: 9.320547945 | D37: 11.79452055 | F37: =D37-B37 -> 5.219178082
A38: Activo corriente, AC | B38: =SUM(B35:B37) -> 38.38356164 | C38: =SUM(C35:C37) -> 47.67671233 | D38: =SUM(D35:D37) -> 69.32876712
A39: Activo no corriente o fijo, AF | B39: 20 | C39: =B39+C97 -> 21 | D39: =C39+D97 -> 23 | F39: =D39-B39 -> 3
A40: Activo total | B40: =B38+B39 -> 58.38356164 | C40: =C38+C39 -> 68.67671233 | D40: =D38+D39 -> 92.32876712
A42: Pasivo y Patrimonio
A43: Proveedores | B43: =B52/365*B95 -> 2.383561644 | C43: =C52/365*C95 -> 3.182060424 | D43: =D52/365*D95 -> 3.999286921 | F43: =D43-B43 -> 1.615725277
A44: Otros acreedores | B44: =B15 -> 1.5 | C44: =C15 -> 2.547918059 | D44: =D15 -> 2.726622976 | F44: =D44-B44 -> 1.226622976
A45: Deuda a corto (líneas de crédito) | B45: =MAX(B66-B67,0) -> 0 | C45: =MAX(C66-C67,0) -> 5.802979668 | D45: =MAX(D66-D67,0) -> 25.27923412 | F45: =D45-B45 -> 25.27923412
A46: Pasivo corriente | B46: =B43+B44+B45 -> 3.883561644 | C46: =C43+C44+C45 -> 11.53295815 | D46: =D43+D44+D45 -> 32.00514402
A47: Deuda a largo (préstamos bancarios) | B47: 20 | C47: =B47+C98 -> 15 | D47: =C47+D98 -> 10 | F47: =D47-B47 -> -10
A48: Patrimonio (Capital y reservas) | B48: 30 | C48: =B48+B49*(1-B99) -> 34.5 | D48: =C48+C49*(1-C99) -> 42.14375418 | F48: =D48-B48 -> 12.14375418
A49: Beneficio del año o Resultado | B49: =B16 -> 4.5 | C49: =C16 -> 7.643754177 | D49: =D16 -> 8.179868929 | F49: =D49-B49 -> 3.679868929
A50: Total pasivo y patrimonio | B50: =B46+B47+B48+B49 -> 58.38356164 | C50: =C46+C47+C48+C49 -> 68.67671233 | D50: =D46+D47+D48+D49 -> 92.32876712
A52: Compras | B52: 87 | C52: =C5+(C37-B37) -> 116.1452055 | D52: =D5+(D37-C37) -> 145.9739726 | E52: CMV + variac existencias
A53: Capex o Nueva inversión bruta | C53: =C39-B39+C11 -> 3 | D53: =D39-C39+D11 -> 4.1 | E53: Variación AF + amortización
A55: Balance corto | B55: =B3 -> 2022 | C55: =C3 -> 2023 | D55: =D3 -> 2024 | F55: =F34 -> Diferencias
A56: Caja excedente | B56: =B35-B100 -> 7.150684932 | C56: =C35-C100 -> 0 | D56: =D35-D100 -> 7.105427358e-15 | F56: =D56-B56 -> -7.150684932
A57: NOF o circulante neto | B57: =B100+B36+B37-B43-B44 -> 27.34931507 | C57: =C100+C36+C37-C43-C44 -> 41.94673385 | D57: =D100+D36+D37-D43-D44 -> 62.60285723 | F57: =D57-B57 -> 35.25354216
A58: AF o activo fijo neto | B58: =B39 -> 20 | C58: =C39 -> 21 | D58: =D39 -> 23 | F58: =D58-B58 -> 3
A59: AN o activo neto | B59: =B56+B57+B58 -> 54.5 | C59: =C56+C57+C58 -> 62.94673385 | D59: =D56+D57+D58 -> 85.60285723
A61: D, Deuda (a largo y corto) | B61: =B45+B47 -> 20 | C61: =C45+C47 -> 20.80297967 | D61: =D45+D47 -> 35.27923412 | F61: =D61-B61 -> 15.27923412
A62: E, Equity o Patrimonio | B62: =B48+B49 -> 34.5 | C62: =C48+C49 -> 42.14375418 | D62: =D48+D49 -> 50.32362311 | F62: =D62-B62 -> 15.82362311
A63: Financiación total | B63: =B61+B62 -> 54.5 | C63: =C61+C62 -> 62.94673385 | D63: =D61+D62 -> 85.60285723
A65: Extracto del balance, NOF vs FM
A66: NOF | B66: =B57 -> 27.34931507 | C66: =C57 -> 41.94673385 | D66: 62.60285723 | F66: =D66-B66 -> 35.25354216
A67: FM | B67: =B47+B48+B49-B39 -> 34.5 | C67: =C47+C48+C49-C39 -> 36.14375418 | D67: =D47+D48+D49-D39 -> 37.32362311 | F67: =D67-B67 -> 2.823623107
A68: Caja excedente (+) | B68: =B67-B66 -> 7.150684932 | C68: =C67-C66 -> -5.802979668 | D68: =D67-D66 -> -25.27923412 | F68: =D68-B68 -> -32.42991905
A69: o crédito necesario (-)
A71: Ratios de balance | B71: =B55 -> 2022 | C71: =C55 -> 2023 | D71: 2024 | F71: En % de Ventas 2024
A72: Días de cobro | B72: =B36/B4*365 -> 90 | C72: 100 | D72: 120 | G72: Clientes = | H72: =D36/D4 -> 0.3287671233
A73: Días de existencias | B73: 30 | C73: 30 | D73: 30 | G73: Existencias = | H73: =D37/D4 -> 0.06739726027
A74: Días de pago | B74: =B43/B52*365 -> 10 | C74: =C43/C52*365 -> 10 | D74: =D43/D52*365 -> 10 | G74: Proveed + otros = | H74: =(D43+D44)/D4 -> 0.03843377084
A75: NOF / Ventas en % | B75: =B57/B4 -> 0.2734931507 | C75: =C57/C4 -> 0.2996195275 | D75: 0.3577306127 | G75: NOF = | H75: =H72+H73-H74 -> 0.3577306127
A76: Apalancamiento (Pasivo / Patrimonio) | B76: =(B46+B47)/B62 -> 0.6922771491 | C76: =(C46+C47)/C62 -> 0.6295822161 | D76: =(D46+D47)/D62 -> 0.8347003142
A77: Deuda / EBITDA | B77: =B61/B10 -> 2 | C77: =C61/C10 -> 1.436669867 | D77: =D61/D10 -> 2.046359288
A78: Deuda / Benef neto | B78: =B61/B16 -> 4.444444444 | C78: =C61/C16 -> 2.721565763 | D78: =D61/D16 -> 4.312933914
A80: HIPOTESIS EN NEGRITA
A81: BALANCE CALCULADO EN FUNCION DEL AÑO QUE TERMINA NO DEL SIGUIENTE
A82: HIPOTESIS CUENTA DE RDOS
A83: Crecimiento ventas | B83: na | C83: 0.4 | D83: 0.25
A84: CMV en % | B84: 0.8 | C84: 0.81 | D84: 0.82
A85: Salarios | B85: 5
A86: Gastos generales | B86: 5
A87: Incremento de Opex | B87: 0.05 | C87: 0.06 | D87: 0.07
A88: Intereses | B88: 0.1 | C88: 0.11 | D88: 0.12
A89: Amortización | B89: 0.1 | C89: =B89 -> 0.1 | D89: =C89 -> 0.1
A90: Impuestos | B90: 0.25 | C90: =B90 -> 0.25 | D90: =C90 -> 0.25
A92: HIPOTESIS DE BALANCE
A93: Clientes días | B93: 90 | C93: 100 | D93: 120
A94: Existencias días | B94: 30 | C94: 30 | D94: 30
A95: Proveedores días | B95: 10 | C95: 10 | D95: 10
A97: Inversión neta (aumento de AF neto) | C97: 1 | D97: 2
A98: Incr. Deuda largo | C98: -5 | D98: -5
A99: Pay out | B99: 0 | C99: 0 | D99: 0
A100: Minimum cash | B100: 0 | C100: 0 | D100: 0

Sheet Anex 1-2 PT (hidden)
C1: Anexo 1. Demonstrativo de resultados. Companhia LoA
A2: Demonstrativo de Resultados
A3: (Milhões de reais) | B3: 2022 | C3: =B3+1 -> 2023 | D3: =C3+1 -> 2024 | I3: =B3 -> 2022 | J3: =C3 -> 2023 | K3: =D3 -> 2024
A4: Vendas | B4: 100 | C4: =B4*(1+C83) -> 140 | D4: =C4*(1+D83) -> 175 | I4: =B4/B$4 -> 1 | J4: =C4/C$4 -> 1 | K4: =D4/D$4 -> 1
A5: CMV | B5: =B4*B84 -> 80 | C5: =C4*C84 -> 113.4 | D5: =D4*D84 -> 143.5 | I5: 0.8 | J5: 0.81 | K5: 0.82
A6: Margem bruta | B6: =B4-B5 -> 20 | C6: =C4-C5 -> 26.6 | D6: =D4-D5 -> 31.5 | I6: 0.2 | J6: 0.19 | K6: 0.18
A7: Salários | B7: =B85 -> 5 | C7: =B7+(1+C87) -> 6.06 | D7: =C7+(1+D87) -> 7.13 | I7: 0.05 | J7: 0.04328571429 | K7: 0.04074285714
A8: Despesas gerais | B8: =B86 -> 5 | C8: =B8+(1+C87) -> 6.06 | D8: =C8+(1+D87) -> 7.13 | I8: 0.05 | J8: 0.04328571429 | K8: 0.04074285714
A9: Opex o despesas operacionais | B9: =B7+B8 -> 10 | C9: =C7+C8 -> 12.12 | D9: =D7+D8 -> 14.26 | I9: 0.1 | J9: 0.08657142857 | K9: 0.08148571429
A10: EBITDA | B10: =B6-B9 -> 10 | C10: =C6-C9 -> 14.48 | D10: =D6-D9 -> 17.24 | I10: 0.1 | J10: 0.1034285714 | K10: 0.09851428571
A11: Amortização | B11: 2 | C11: =C89*B39 -> 2 | D11: =D89*C39 -> 2.1 | I11: 0.02 | J11: 0.01428571429 | K11: 0.012
A12: EBIT ou BAIT | B12: =B10-B11 -> 8 | C12: =C10-C11 -> 12.48 | D12: =D10-D11 -> 15.14 | I12: 0.08 | J12: 0.08914285714 | K12: 0.08651428571
A13: Despesas financeiras | B13: =B88*(B47+B45) -> 2 | C13: =C88*(C47+C45) -> 2.288327763 | D13: =D88*(D47+D45) -> 4.233508094 | I13: 0.02 | J13: 0.01634519831 | K13: 0.02419147482
A14: EBT ou BAT | B14: =B12-B13 -> 6 | C14: =C12-C13 -> 10.19167224 | D14: =D12-D13 -> 10.90649191 | I14: 0.06 | J14: 0.07279765883 | K14: 0.06232281089
A15: Impostos (25%) | B15: =B14*B90 -> 1.5 | C15: =C14*C90 -> 2.547918059 | D15: =D14*D90 -> 2.726622976 | I15: 0.015 | J15: 0.01819941471 | K15: 0.01558070272
A16: LL Lucro líquido | B16: =B14-B15 -> 4.5 | C16: =C14-C15 -> 7.643754177 | D16: =D14-D15 -> 8.179868929 | I16: 0.045 | J16: 0.05459824412 | K16: 0.04674210817
A18: Índices do demonstrativo de resultados
A19: Crescimento das vendas | B19: 0.7 | C19: =C4/B4-1 -> 0.4 | D19: =D4/C4-1 -> 0.25 | E19: =AVERAGE(B19:D19) -> 0.45 | F19: Crescimento médio de vendas
A20: Margem bruta / vendas | B20: =B6/B4 -> 0.2 | C20: =C6/C4 -> 0.19 | D20: =D6/D4 -> 0.18 | E20: =(D20-B20)*100 -> -2 | F20: pp, pontos percentuais
A21: Opex / Vendas | B21: =B9/B4 -> 0.1 | C21: =C9/C4 -> 0.08657142857 | D21: =D9/D4 -> 0.08148571429 | E21: =(D21-B21)*100 -> -1.851428571 | F21: pp
A22: Aumento de Opex | B22: 0.2 | C22: =C9/B9-1 -> 0.212 | D22: =D9/C9-1 -> 0.1765676568 | E22: =AVERAGE(B22:D22) -> 0.1961892189 | F22: Crescimento médio de opex
A23: EBITDA / Vendas | B23: =B10/B4 -> 0.1 | C23: =C10/C4 -> 0.1034285714 | D23: =D10/D4 -> 0.09851428571 | E23: =(D23-B23)*100 -> -0.1485714286 | F23: pp
A24: ROS, Lucro líquido / vendas | B24: =B16/B4 -> 0.045 | C24: =C16/C4 -> 0.05459824412 | D24: =D16/D4 -> 0.04674210817 | E24: Rentabilidade s/ Vendas
A25: ROA, Lucro / ativo total | B25: =B16/B40 -> 0.07707648991 | C25: =C16/C40 -> 0.1113005256 | D25: =D16/D40 -> 0.08859501956 | E25: Rentabilidade do ativo total
A26: RONA, EBIT / ativo líquido | B26: =B12/B59 -> 0.1467889908 | C26: =C12/C59 -> 0.1982628683 | D26: =D12/D59 -> 0.1768632554 | E26: Rentabilidade do ativo liquido
A27: ROE, Lucro líquido / recursos próprios | B27: =B16/B48 -> 0.15 | C27: =C16/C48 -> 0.2215580921 | D27: =D16/D48 -> 0.1940944534 | E27: Rentabilidade do capital (equity)
A28: CFO = Lucro líquido + amortização | B28: =B16+B11 -> 6.5 | C28: =C16+C11 -> 9.643754177 | D28: =D16+D11 -> 10.27986893 | E28: CFO cash flow operações
A29: Inflação | B29: 0.09 | C29: 0.1 | D29: 0.11
A30: Juros | B30: =B13/B61 -> 0.1 | C30: =C13/C61 -> 0.11 | D30: =D13/D61 -> 0.12
C32: Anexo 2. Balanços da companhia LoA
A33: Ativo | F33: 2022-24
A34: =A3 -> (Milhões de reais) | B34: =B3 -> 2022 | C34: =C3 -> 2023 | D34: =D3 -> 2024 | F34: Diferenças
A35: Caixa | B35: =MAX(B50-B36-B37-B39,B100) -> 7.150684932 | C35: =MAX(C50-C36-C37-C39,C100) -> 0 | D35: =MAX(D50-D36-D37-D39,D100) -> 7.105427358e-15 | F35: =D35-B35 -> -7.150684932
A36: Clientes | B36: =B4/365*B93 -> 24.65753425 | C36: 38.35616438 | D36: 57.53424658 | F36: =D36-B36 -> 32.87671233
A37: Estoques | B37: 6.575342466 | C37: 9.320547945 | D37: 11.79452055 | F37: =D37-B37 -> 5.219178082
A38: Ativo corrente, AC | B38: =SUM(B35:B37) -> 38.38356164 | C38: =SUM(C35:C37) -> 47.67671233 | D38: =SUM(D35:D37) -> 69.32876712
A39: Ativo não corrente o fixo, AF | B39: 20 | C39: =B39+C97 -> 21 | D39: =C39+D97 -> 23 | F39: =D39-B39 -> 3
A40: Ativo total | B40: =B38+B39 -> 58.38356164 | C40: =C38+C39 -> 68.67671233 | D40: =D38+D39 -> 92.32876712
A42: Passivo e Patrimônio
A43: Fornecedores | B43: =B52/365*B95 -> 2.383561644 | C43: =C52/365*C95 -> 3.182060424 | D43: =D52/365*D95 -> 3.999286921 | F43: =D43-B43 -> 1.615725277
A44: Outros credores | B44: =B15 -> 1.5 | C44: =C15 -> 2.547918059 | D44: =D15 -> 2.726622976 | F44: =D44-B44 -> 1.226622976
A45: Dívida curto prazo (Crédito bancário) | B45: =MAX(B66-B67,0) -> 0 | C45: =MAX(C66-C67,0) -> 5.802979668 | D45: =MAX(D66-D67,0) -> 25.27923412 | F45: =D45-B45 -> 25.27923412
A46: Passivo corrente | B46: =B43+B44+B45 -> 3.883561644 | C46: =C43+C44+C45 -> 11.53295815 | D46: =D43+D44+D45 -> 32.00514402 | I46: Outros credores
A47: Dívida longo prazo (Empréstimo bancário) | B47: 20 | C47: =B47+C98 -> 15 | D47: =C47+D98 -> 10 | F47: =D47-B47 -> -10
A48: Patrimônio (Capital próprio o equity) | B48: 30 | C48: =B48+B49*(1-B99) -> 34.5 | D48: =C48+C49*(1-C99) -> 42.14375418 | F48: =D48-B48 -> 12.14375418
A49: Lucro do ano | B49: =B16 -> 4.5 | C49: =C16 -> 7.643754177 | D49: =D16 -> 8.179868929 | F49: =D49-B49 -> 3.679868929
A50: Total passivo e patrimônio | B50: =B46+B47+B48+B49 -> 58.38356164 | C50: =C46+C47+C48+C49 -> 68.67671233 | D50: =D46+D47+D48+D49 -> 92.32876712
A52: Compras | B52: 87 | C52: =C5+(C37-B37) -> 116.1452055 | D52: =D5+(D37-C37) -> 145.9739726 | E52: CMV + Variac estoques
A53: Capex o Novo investimento bruto | C53: =C39-B39+C11 -> 3 | D53: =D39-C39+D11 -> 4.1 | E53: Variação do AF + amortização
A55: Balanço curto | B55: =B3 -> 2022 | C55: =C3 -> 2023 | D55: =D3 -> 2024 | F55: =F34 -> Diferenças
A56: Caixa excedente | B56: =B35-B100 -> 7.150684932 | C56: =C35-C100 -> 0 | D56: =D35-D100 -> 7.105427358e-15 | F56: =D56-B56 -> -7.150684932
A57: NOF ou circulante líquido | B57: =B100+B36+B37-B43-B44 -> 27.34931507 | C57: =C100+C36+C37-C43-C44 -> 41.94673385 | D57: =D100+D36+D37-D43-D44 -> 62.60285723 | F57: =D57-B57 -> 35.25354216
A58: AF ou ativo fixo líquido | B58: =B39 -> 20 | C58: =C39 -> 21 | D58: =D39 -> 23 | F58: =D58-B58 -> 3
A59: AL ou ativo líquido | B59: =B56+B57+B58 -> 54.5 | C59: =C56+C57+C58 -> 62.94673385 | D59: =D56+D57+D58 -> 85.60285723
A61: D ou Dívida (a longo e a curto) | B61: =B45+B47 -> 20 | C61: =C45+C47 -> 20.80297967 | D61: =D45+D47 -> 35.27923412 | F61: =D61-B61 -> 15.27923412
A62: E, Equity o Patrimônio | B62: =B48+B49 -> 34.5 | C62: =C48+C49 -> 42.14375418 | D62: =D48+D49 -> 50.32362311 | F62: =D62-B62 -> 15.82362311
A63: Total financiamento | B63: =B61+B62 -> 54.5 | C63: =C61+C62 -> 62.94673385 | D63: =D61+D62 -> 85.60285723
A65: Extrato do balanço, NOF vs CG
A66: NOF | B66: =B57 -> 27.34931507 | C66: =C57 -> 41.94673385 | D66: 62.60285723 | F66: =D66-B66 -> 35.25354216
A67: CG | B67: =B47+B48+B49-B39 -> 34.5 | C67: =C47+C48+C49-C39 -> 36.14375418 | D67: =D47+D48+D49-D39 -> 37.32362311 | F67: =D67-B67 -> 2.823623107
A68: Caixa excedente (+) | B68: =B67-B66 -> 7.150684932 | C68: =C67-C66 -> -5.802979668 | D68: =D67-D66 -> -25.27923412 | F68: =D68-B68 -> -32.42991905
A69: ou crédito necessário (-)
A71: Índices do balanço | B71: =B55 -> 2022 | C71: =C55 -> 2023 | D71: 2024 | F71: Em % das Vendas 2024
A72: Dias de cobrança | B72: =B36/B4*365 -> 90 | C72: 100 | D72: 120 | G72: Clientes = | H72: =D36/D4 -> 0.3287671233
A73: Dias de estoques | B73: 30 | C73: 30 | D73: 30 | G73: Estoques = | H73: =D37/D4 -> 0.06739726027
A74: Dias de pagamento | B74: =B43/B52*365 -> 10 | C74: =C43/C52*365 -> 10 | D74: =D43/D52*365 -> 10 | G74: Fornecedores + outros = | H74: =(D43+D44)/D4 -> 0.03843377084
A75: NOF / Vendas em % | B75: =B66/B4 -> 0.2734931507 | C75: =C66/C4 -> 0.2996195275 | D75: =D66/D4 -> 0.3577306127 | G75: NOF = | H75: =H72+H73-H74 -> 0.3577306127
A76: Alavancagem (Passivo / Patrimônio) | B76: =(B46+B47)/B62 -> 0.6922771491 | C76: =(C46+C47)/C62 -> 0.6295822161 | D76: =(D46+D47)/D62 -> 0.8347003142
A77: Dívida / Ebitda | B77: =B61/B10 -> 2 | C77: =C61/C10 -> 1.436669867 | D77: =D61/D10 -> 2.046359288
A78: Dívida / Lucro liquido | B78: =B61/B16 -> 4.444444444 | C78: =C61/C16 -> 2.721565763 | D78: =D61/D16 -> 4.312933914
A80: Hipóteses EM NEGRITO
A81: BALANÇO CALCULADO EM FUNÇÃO DO ANO QUE TERMINA E NÃO DO ANO SEGUINTE
A82: HIPÓTESES DEMONSTRATIVO DE RESULTADOS
A83: Crescimento das vendas | B83: na | C83: 0.4 | D83: 0.25
A84: CMVen % | B84: 0.8 | C84: 0.81 | D84: 0.82
A85: Salários | B85: 5
A86: Despesas gerais | B86: 5
A87: Incremento de Opex | B87: 0.05 | C87: 0.06 | D87: 0.07
A88: Juros | B88: 0.1 | C88: 0.11 | D88: 0.12
A89: Amortização | B89: 0.1 | C89: =B89 -> 0.1 | D89: =C89 -> 0.1
A90: Impostos | B90: 0.25 | C90: =B90 -> 0.25 | D90: =C90 -> 0.25
A92: HIPÓTESES DO BALANÇO
A93: Clientes dias | B93: 90 | C93: 100 | D93: 120
A94: Estoques dias | B94: 30 | C94: 30 | D94: 30
A95: Fornecedores dias | B95: 10 | C95: 10 | D95: 10
A97: Incr. AF líquido | C97: 1 | D97: 2
A98: Incr. Dívida longo | C98: -5 | D98: -5
A99: Pay out | B99: 0 | C99: 0 | D99: 0
A100: Minimum cash | B100: 0 | C100: 0 | D100: 0

Sheet Fig 1-3
B1: VERSION EN ESPAÑOL Línea 30. PORTUGUÊS, linha 60
D3: Figure 1. Main items in the Balance Sheet | M3: Figure 2. The Short Balance Sheet
U4: Figure 3. NFO vs. WC
A5: 1 | D5: Cash (2$) | F5: Payables | K5: Cash (2$) | M5: Payables
A6: 2 | F6: (6$) | M6: (6$)
A7: 3 | H7: Spontaneous
A8: 4 | B8: Current | D8: Receivables | F8: Other Liab. | H8: Funds (SF) | K8: Receivables | M8: Other Liab.
A9: 5 | B9: Assets | D9: (12$) | F9: (4$) | K9: (12$) | M9: (4$)
A10: 6 | B10: (CA) | P10: Cash (2$) | U10: Cash (2$) | Y10: Cash (2$)
A11: 7 | F11: Credit | M11: Credit | R11: Credit | W11: Credit | AA11: Credit
A12: 8 | D12: Inventory | F12: (6$) | H12: Debt (D) | K12: Inventory | M12: (6$) | P12: NFO | R12: (6$) | U12: NFO | W12: (6$) | Y12: NFO | AA12: (6$)
A13: 9 | D13: (6$) | F13: Long Term Debt | K13: (6$) | M13: Long Term Debt | P13: (8$) | R13: Long Term Debt | U13: (8$) | W13: Long Term Debt | Y13: (8$) | AA13: WC
A14: 10 | F14: (4$) | M14: (4$) | R14: (4$) | W14: (4$) | AA14: (4$)
A15: 11 | B15: Fixed
A16: 12 | B16: Assets net | D16: Fixed Assets | F16: Equity | K16: Fixed Assets | M16: Equity | P16: Fixed Assets | R16: Equity | U16: Fixed Assets | W16: Equity
A17: 13 | B17: (FA) | D17: (10$) | F17: (10$) | H17: Equity (E) | K17: (10$) | M17: (10$) | P17: (10$) | R17: (10$) | U17: (10$) | W17: (10$)
A18: 14
A19: 15
D20: 30$ | F20: 30$ | K20: 30$ | M20: 30$ | P20: 18$ | R20: 20$
D21: Total Assets | F21: Liab. + Equity | K21: Total Assets | M21: Liab. + Equity | P21: Net Assets | R21: Debt+ Equity | Y21: NFO | Z21: =Q24 -> 8
Y22: WC | Z22: =S25+S24-Q25 -> 4
D23: Cash | E23: 2 | F23: Payables | G23: 6 | P23: Cash Surplus | Q23: =E23 -> 2 | R23: Debt Short | S23: =G25 -> 6 | Y23: Credit | Z23: =Z22-Z21 -> -4
D24: Receivables | E24: 12 | F24: Other Liabilities | G24: 4 | P24: NFO | Q24: =E24+E25-G23-G24 -> 8 | R24: Debt Long | S24: =G26 -> 4
D25: Inventory | E25: 6 | F25: Credit | G25: 6 | P25: FA | Q25: =E26 -> 10 | R25: Equity | S25: =G27 -> 10
D26: Fixed Assets | E26: 10 | F26: Long Term Debt | G26: 4 | P26: NA | Q26: =Q23+Q24+Q25 -> 20 | R26: Financing | S26: =S23+S24+S25 -> 20
F27: Equity | G27: 10
D28: Total Assets | E28: =SUM(E23:E26) -> 30 | F28: Total Liab. + Equity | G28: =SUM(G23:G27) -> 30
D32: Figura 1. Elementos principales del balance | M32: Figura 2. El balance corto
U33: Figura 3. NFO frente a WC
A34: 1 | D34: Caja (2$) | F34: Proveedores | K34: Caja (2$) | M34: Proveedores
A35: 2 | F35: (6$) | M35: (6$)
A36: 3 | H36: Financiación
A37: 4 | B37: Activo | D37: Clientes | F37: Otros pasivos | H37: espontánea (FE) | K37: Clientes | M37: Otros pasivos
A38: 5 | B38: corriente | D38: (12$) | F38: (4$) | K38: (12$) | M38: (4$)
A39: 6 | B39: (AC) | P39: Caja (2$) | U39: Caja (2$) | Y39: Caja (2$)
A40: 7 | F40: Crédito | M40: Crédito | R40: Crédito | W40: Crédito | AA40: Crédito
A41: 8 | D41: Existencias | F41: (6$) | H41: Deuda (D) | K41: Existencias | M41: (6$) | P41: NOF | R41: (6$) | U41: NOF | W41: (6$) | Y41: NOF | AA41: (6$)
A42: 9 | D42: (6$) | F42: Deuda a largo | K42: (6$) | M42: Deuda a largo | P42: (8$) | R42: Deuda a largo | U42: (8$) | W42: Deuda a largo | Y42: (8$) | AA42: FM
A43: 10 | F43: (4$) | M43: (4$) | R43: (4$) | W43: (4$) | AA43: (4$)
A44: 11 | B44: Activo
A45: 12 | B45: fijo | D45: Activo fijo neto | F45: Patrimonio neto | H45: Patrimonio | K45: Activo fijo neto | M45: Equity o | P45: Activo fijo neto | R45: Patrimonio | U45: Activo fijo neto | W45: Equity o
A46: 13 | B46: (AF) | D46: (10$) | F46: (10$) | H46: o | K46: (10$) | M46: Patrimonio | P46: (10$) | R46: (10$) | U46: (10$) | W46: Patrimonio
A47: 14 | H47: Equity € | M47: (10$) | W47: (10$)
A48: 15
D49: 30$ | F49: 30$ | K49: 30$ | M49: 30$ | P49: 18$ | R49: 20$
D50: Activo Total | F50: Pasivo + Patrimonio | K50: Activo Total | M50: Pasivo + Patrimonio | P50: Activo Neto | R50: Deuda + Patrimonio | Y50: NOF | Z50: =Q53 -> 8
Y51: FM | Z51: =S54+S53-Q54 -> 4
D52: Caja | E52: 2 | F52: Proveedores | G52: 6 | P52: Caja excedente | Q52: =E52 -> 2 | R52: Crédito | S52: =G54 -> 6 | Y52: Crédito | Z52: =Z51-Z50 -> -4
D53: Clientes | E53: 12 | F53: Otros pasivos | G53: 4 | P53: NOF | Q53: =E53+E54-G52-G53 -> 8 | R53: Deuda a largo | S53: =G55 -> 4
D54: Existencias | E54: 6 | F54: Crédito | G54: 6 | P54: AF | Q54: =E55 -> 10 | R54: Patrimonio | S54: =G56 -> 10
D55: Activo Fijo | E55: 10 | F55: Deuda a largo | G55: 4 | P55: AN | Q55: =Q52+Q53+Q54 -> 20 | R55: Financiación | S55: =S52+S53+S54 -> 20
F56: Patrimonio neto | G56: 10
D57: Activo Total | E57: =SUM(E52:E55) -> 30 | F57: Pasivo + Patrimonio | G57: =SUM(G52:G56) -> 30
D61: Figura 1. Principais itens do balanço | M61: Figura 2. O Balanço curto
U62: Figura 3. NOF vs. CG
D63: Caixa (€ 2) | F63: Contas a Pagar | K63: Caixa (€ 2) | M63: Contas a Pagar
F64: (€6) | M64: (€6)
H65: Passivos
B66: Ativo | D66: Contas a Receber | F66: Outros Passivos | H66: Espontâneos | K66: Contas a Receber | M66: Outros Passivos
B67: Circulante | D67: (€12) | F67: (€4) | H67: (PE) | K67: (€12) | M67: (€4)
B68: (AC) | P68: Caixa (€ 2) | U68: Caixa (€ 2) | Y68: Caixa (€ 2)
F69: Crédito | M69: Crédito | R69: Crédito | W69: Crédito | AA69: Crédito
D70: Estoques | F70: (€6) | H70: Dívida (D) | K70: Estoques | M70: (€6) | P70: NOF | R70: (€6) | U70: NOF | W70: (€6) | Y70: NOF | AA70: (€6)
D71: (€6) | F71: Dívida Longo Prazo | K71: (€6) | M71: Dívida Longo Prazo | P71: (€8) | R71: Dívida Longo Prazo | U71: (€8) | W71: Dívida Longo Prazo | Y71: (€8) | AA71: CG
F72: (€4) | M72: (€4) | R72: (€4) | W72: (€4) | AA72: (€4)
B73: Ativos
B74: Fixos Líq. | D74: Ativos Fixos | F74: Pat. Líquido | H74: Patrimônio | K74: Ativos Fixos | M74: Pat. Líquido | P74: Ativos Fixos | R74: Pat. Líquido | U74: Ativos Fixos | W74: Pat. Líquido
B75: (AF) | D75: (€10) | F75: (€10) | H75: Líquido (PL) | K75: (€10) | M75: (€10) | P75: (€10) | R75: (€10) | U75: (€10) | W75: (€10)
H76: ou
H77: Rec. próprios (RP)
D78: 30 | F78: 30 | K78: 30 | M78: 30 | P78: 18 | R78: 20
D79: Total Ativos | F79: Passivo + PL | K79: Total Ativos | M79: Passivo + PL | P79: Ativos Líquidos | R79: Dívida + PL | Y79: NOF | Z79: =Q82 -> 8
Y80: CG | Z80: =S83+S82-Q83 -> 4
D81: Caixa | E81: 2 | F81: Total Ativos | G81: 6 | P81: Caixa | Q81: =E81 -> 2 | R81: Crédito | S81: =G83 -> 6 | Y81: Crédito | Z81: =Z80-Z79 -> -4
D82: Contas a Receber | E82: 12 | F82: Outros Passivos | G82: 4 | P82: NOF | Q82: =E82+E83-G81-G82 -> 8 | R82: Dívida Longo Prazo | S82: =G84 -> 4
D83: Estoques | E83: 6 | F83: Crédito | G83: 6 | P83: AF | Q83: =E84 -> 10 | R83: Pat. Líquido | S83: =G85 -> 10
D84: Ativos Fixos | E84: 10 | F84: Dívida Longo Prazo | G84: 4 | P84: AL | Q84: =Q81+Q82+Q83 -> 20 | R84: Financiamento | S84: =S81+S82+S83 -> 20
F85: Pat. Líquido | G85: 10
D86: Total Ativos | E86: =SUM(E81:E84) -> 30 | F86: Passivo + PL | G86: =SUM(G81:G85) -> 30

Sheet Anex 3
A1: Anexo 3. Exhibit 3. VOCABULARY.
A3: Pérdidas y Ganancias (PyG) | B3: Profit and Loss Statement (P&L) | C3: Demonstrativo de Resultados do Exercício
A4: Cuenta de Resultados | B4: Income Statement or | C4: (DRE)
A5: Ventas o Ingresos | B5: Net sales or Revenue | C5: Vendas Líquidas ou Faturamento Líq.
A6: Coste mercancías vendidas CMV | B6: Cost of goods sold (COGS) | C6: Custo das Mercadorias Vendidas (CMV)
A7: Existencias iniciales | B7: Beginning inventory | C7: Estoque Inicial
A8: Compras | B8: Purchases | C8: Compras
A9: Existencias finales | B9: Ending inventory | C9: Estoque Final
A10: Margen bruto | B10: Gross margin or gross profit | C10: Margem Bruta
A11: Gastos de personal o salarios | B11: Personnel expenses, or labor or wages | C11: Despesas de Pessoal e Salários
A12: Gastos de ventas | B12: Selling expenses | C12: Despesas de Vendas
A13: Gastos generales | B13: Overhead | C13: Despesas Gerais
A14: Total Gastos de explotación (Opex) | B14: Operating expenses | C14: Despesas Operacionais
A15: EBITDA | B15: EBITDA | C15: EBITDA
A16: Amortización | B16: Depreciation or amortization | C16: Depreciação e Amortização
A17: Beneficio antes de intereses e impuestos EBIT o BAIT | B17: EBIT, Earnings before interest and taxes | C17: LAJIR, Lucro antes dos juros e do imposto de renda
A18: Intereses o gastos financieros | B18: Interest or financial expenses | C18: Despesas Financeiras
A19: Beneficio antes de impuestos | B19: Net income (o earnings) before taxes | C19: LAIR, lucros antes do imposto de renda
A20: Impuestos | B20: Accrued taxes or income taxes | C20: Impostos
A21: Resultado o Beneficio neto (BN) | B21: Net income or net profit or net earnings | C21: Lucro Líquido
A23: Otros términos y ratios | B23: Other terms and ratios | C23: Outros termos e índices
A24: Crecimiento de ventas (g) | B24: Growth of sales (g) | C24: Crescimento das vendas (g)
A25: Crecimiento esperado E(g) | B25: Expected sales growth E(g) | C25: Crescimento esperado E(g)
A26: Margen bruto / Ventas (margen%) | B26: Margin / Sales or gross margin in % | C26: Margem bruta / Vendas (margem%)
A27: ROS, beneficio neto / Ventas | B27: ROS, return on sales (Net income / Sales) | C27: ROS, retorno sobre as vendas (Lucro Líq. / Vendas)
A28: RONA, rentabilidad s/activo neto (EBIT/AN) | B28: RONA, return on net assets (EBIT / NA) | C28: RONA, retorno sobre os ativos líquidos (EBIT / AL)
A29: ROA, rentabilidad s/activos (BN /Activo total) | B29: ROA, return on assets (NI / Total assets) | C29: ROA, rentabilidade dos ativos (Lucro Líquido / Ativos)
A30: ROE, rentab. sobre recursos propios | B30: ROE, return on equity (net income / equity) | C30: ROE, retorno sobre o patrimônio líquido (Lucro Líquido / PL)
A31: ROCE, rentab. sobre capital empleado | B31: ROCE, return on capital employed (Ebit / NA) | C31: ROCE, retorno sobre o capital empregado (EBIT / AL)
A32: EBIT / Intereses | B32: EBIT / Interest expense | C32: EBIT / Despesas com juros
A33: CFO Cash flow operativo (BN+amortizac.) | B33: CFO, cash flow from operations (net inc+deprec) | C33: FCO, fluxo de caixa operacional (Lucro Líquido + Depreciação)
A34: Creación de valor | B34: Value creation | C34: Criação de Valor
A35: ROS o beneficio s/ ventas | B35: ROS, net income / sales | C35: ROS ou Lucro Líquido / Vendas
A36: Rotación o ventas / activos | B36: Turnover, sales / assets | C36: Rotação, vendas / ativos
A37: Apalancamiento o activos/ rec. Propios | B37: Leverage, assets / equity | C37: Alavancagem, ativos / patrimônio líquido
A44: Balance | B44: Balance Sheet | C44: Balanço Patrimonial
A46: ACTIVO | B46: ASSETS | C46: ATIVOS
A47: Efectivo y otros acitvos equivalentes (Caja y bancos) | B47: Cash | C47: Caixa e Equivalentes de Caixa
A48: Inversiones financieras a corto plazo | B48: Marketable securities | C48: Investimentos Financeiros de Curto Prazo
A49: Deudores comerciales y cuentas a cobrar (Clientes) | B49: Accounts receivable | C49: Contas a Receber
A50: Existencias | B50: Inventory, Stocks | C50: Estoques
A51: Materia prima (MP) | B51: Raw material (RM) | C51: Matéria-prima (MP)
A52: Producto en curso (PeC) | B52: Work in progress (WiP) | C52: Produtos em Processo (PP)
A53: Producto acabado (PA) | B53: Finished goods (FG) | C53: Produto acabado (PA)
A54: Activo corriente (AC) | B54: Current assets (CA) | C54: Ativo Circulante (AC)
A55: Activo no corriente | B55: Non current assets | C55: Ativo Não Circulante (ANC)
A56: Activo fijo o inmovilizado (AF) | B56: Fixed assets net or property net FA) | C56: Ativos Fixos ou Imobilizados (AF)
A57: TOTAL ACTIVO | B57: TOTAL ASSETS | C57: TOTAL DOS ATIVOS
A59: PASIVO Y PATRIMONIO NETO | B59: LIABILITIES & EQUITY | C59: PASSIVO E PATRIMÔNIO LÍQUIDO
A60: Proveedores, cuentas a pagar | B60: Accounts payable | C60: Contas a Pagar
A61: Otros acreedores | B61: Accrued expenses | C61: Despesas acumuladas
A62: Impuestos a pagar | B62: Accrued taxes | C62: Impostos a pagar
A63: Acreedores por arrendamiento financiero | B63: Leasing accrued expenses | C63: Despesas acumuladas de Leasing
A64: Deuda con entidades de crédito a corto plazo (D-C) | B64: Bank short term debt | C64: Dívida bancária de curto prazo
A65: Provisiones a corto plazo | B65: Short-term provisions | C65: Provisões de curto prazo
A66: Pasivo corriente | B66: Current liabilities | C66: Passivo Circulante
A67: Pasivo por impuestos diferidos | B67: Deferred taxes | C67: Impostos diferidos
A68: Deuda a largo plazo (D-L) | B68: Long-term debt | C68: Dívida de longo prazo
A69: Provisiones a largo plazo | B69: Long-term provisions | C69: Provisões de longo prazo
A70: Pasivo no corriente | B70: Non current (long term) liabilities
A71: Capital | B71: Common stock | C71: Capital
A72: Reservas | B72: Reserves | C72: Reservas
A73: Resultado del ejercicio | B73: Net income of the year | C73: Lucro Líquido do Exercício
A74: Patrimonio neto | B74: Equity or net worth | C74: Patrimônio Líquido
A75: TOTAL PASIVO Y PATRIMONIO | B75: TOTAL LIABILITIES & EQUITY | C75: TOTAL PASSIVO E PATRIMÔNIO LÍQUIDO
A77: Otros términos y ratios | B77: Other terms and ratios | C77: Outros termos e índices
A78: NOF, necesidades operativas de fondos | B78: NFO, need of funds for operations | C78: NOF, necessidades operacionais de fundos
A79: FM, fondo de maniobra | B79: WC, working capital | C79: CG, capital de giro
A80: Crédito Bancario | B80: Bank credit | C80: Crédito Bancário
A81: Caja excedente | B81: Cash surplus | C81: Excedente de Caixa
A82: Apalancamiento, pasivo /patrim. | B82: Leverage, liabilities / equity | C82: Alavancagem, Passivo / Patrim. Líquido
A83: Deuda / Ebitda | B83: Debt / Ebitda | C83: Dívida / EBITDA
A84: Plazo cobro | B84: Collection period | C84: Prazo de Cobrança
A85: Plazo pago | B85: Payment period | C85: Prazo de Pagamento
A86: Plazo de existencias | B86: Days of Inventory | C86: Dias de Estoques

Sheet Questions
B1: Chapter 1. Self-assessment questions
B2: Answer the following questions. Write your answers in column C. T or F (true or false). | H2: 1 | I2: F | J2: 6 | K2: V | L2: 11 | M2: V | N2: 16 | O2: V | P2: 21 | Q2: V | R2: 26 | S2: F | T2: 31 | U2: F | V2: 36 | W2: V
B3: Check your answers by clicking on the 2 with box in the upper left corner; or in the cross with a box above column F. | H3: 2 | I3: V | J3: 7 | K3: F | L3: 12 | M3: F | N3: 17 | O3: V | P3: 22 | Q3: V | R3: 27 | S3: V | T3: 32 | U3: V | V3: 37 | W3: V
B4: Column E will be displayed with the correct answer. If you have less than 30 points, it is recommended to review Chapter 1. | H4: 3 | I4: F | J4: 8 | K4: F | L4: 13 | M4: V | N4: 18 | O4: V | P4: 23 | Q4: F | R4: 28 | S4: V | T4: 33 | U4: F | V4: 38 | W4: V
B5: Correct answer = 1 point. No response = 0 points. Wrong answer = | C5: 0 | H5: 4 | I5: V | J5: 9 | K5: V | L5: 14 | M5: V | N5: 19 | O5: V | P5: 24 | Q5: F | R5: 29 | S5: F | T5: 34 | U5: F | V5: 39 | W5: F
B6: © IESE. E.M. Abascal 2023. Version 26/9/23 | H6: 5 | I6: V | J6: 10 | K6: F | L6: 15 | M6: V | N6: 20 | O6: F | P6: 25 | Q6: v | R6: 30 | S6: V | T6: 35 | U6: V | V6: 40 | W6: F
C7: Answer | D7: Your | E7: Correct
B8: QUESTIONS | C8: T or F | D8: Points | E8: Answer | H8: English
A9: 1 | B9: When we analyze sales we only look at size, seasonality and whether sales are cyclical. | D9: =IF(C9="",0,IF(C9=E9,1,$C$5)) -> 0 | E9: F
A10: =A9+1 -> 2 | B10: Margin% = (Sales – COGS)/ Sales. | D10: =IF(C10="",0,IF(C10=E10,1,$C$5)) -> 0 | E10: T | H10: 1 | I10: F | J10: 6 | K10: T | L10: 11 | M10: T | N10: 16 | O10: T | P10: 21 | Q10: T | R10: 26 | S10: F | T10: 31 | U10: F | V10: 36 | W10: T
A11: =A10+1 -> 3 | B11: When there is big competition, the margin% is usually also big. | D11: 0 | E11: F | H11: 2 | I11: T | J11: 7 | K11: F | L11: 12 | M11: F | N11: 17 | O11: T | P11: 22 | Q11: T | R11: 27 | S11: T | T11: 32 | U11: T | V11: 37 | W11: T
A12: 4 | B12: To increase the margin% you can raise prices or lower COGS%. | D12: 0 | E12: T | H12: 3 | I12: F | J12: 8 | K12: F | L12: 13 | M12: T | N12: 18 | O12: T | P12: 23 | Q12: F | R12: 28 | S12: T | T12: 33 | U12: F | V12: 38 | W12: T
A13: 5 | B13: Most of the time the margin% is the main driver of profit. | D13: 0 | E13: T | H13: 4 | I13: T | J13: 9 | K13: T | L13: 14 | M13: T | N13: 19 | O13: T | P13: 24 | Q13: F | R13: 29 | S13: F | T13: 34 | U13: F | V13: 39 | W13: F
A14: 6 | B14: EBITDA% = margin% − opex%. | D14: 0 | E14: T | H14: 5 | I14: T | J14: 10 | K14: F | L14: 15 | M14: T | N14: 20 | O14: F | P14: 25 | Q14: T | R14: 30 | S14: T | T14: 35 | U14: T | V14: 40 | W14: F
A15: 7 | B15: NFO = current assets – current liabilities. | D15: 0 | E15: F
A16: 8 | B16: If the sales are seasonal, the WC is also seasonal. | D16: 0 | E16: F
A17: 9 | B17: The difference NFO – WC is covered with credit. | D17: 0 | E17: T
A18: 10 | B18: La diferencia NFO – WC se puede cubrir también con recursos propios. | D18: 0 | E18: F
A19: 11 | B19: WC = Equity + Debt long term −FA. | D19: 0 | E19: T
A20: =A19+1 -> 12 | B20: NFO is always a percentage of sales, which never changes. | D20: 0 | E20: F
A21: 13 | B21: Net assets (NA) have two components: NFO and FA. | D21: 0 | E21: T
A22: 14 | B22: Net assets (NA) are financed only with debt and equity. | D22: 0 | E22: F
A23: 15 | B23: If the WC is greater than the NFO, the difference will be in credit. | D23: 0 | E23: T
A24: 16 | B24: If debt + equity is greater than net assets, the difference will be in cash. | D24: 0 | E24: T
A25: 17 | B25: In general, a decrease in assets is an increase in cash. | D25: 0 | E25: T
A26: 18 | B26: If you cancel an asset from your balance (because it is obsolete), there is no cash generation but there is a decrease in profits. | D26: 0 | E26: T
A27: 19 | B27: If your sales increase by 20% and your NFO% do not change, your NFO$ will increase by 20%. | D27: 0 | E27: T
A28: 20 | B28: If you have plenty of excess cash, your NFOs will be very large. | D28: 0 | E28: F
A29: 21 | B29: Monthly sale (uniform) = €100. In receivables there is €200, therefore your collection days are 60. | D29: 0 | E29: T
A30: 22 | B30: The collection days increase to 120 days, therefore you will have €400 in receivables. | D30: 0 | E30: T
A31: 23 | B31: Commercial enterprise. Monthly sale (uniform) = €100. CMV = 80%. Stock = €100, therefore the days of stock are 30. | D31: 0 | E31: F
B32: For the following questions. Seasonal sales. January 300, February 400, March 100, April 50.
A33: 24 | B33: In receivables in March we have €700. Therefore we collect in 60 days. | D33: 0 | E33: F
A34: 25 | B34: In receivables in March we have €300. Therefore we collect in 45 days. | D34: 0 | E34: T
A35: 26 | B35: You have few and powerful clients. As a consequence you will have a high% margin. | D35: 0 | E35: F
A36: 27 | B36: You have many clients and small ones. As a consequence you will have a higher% margin, but also higher distribution costs. | D36: 0 | E36: T
A37: 28 | B37: The product you sell is a commodity. In most cases the competition will be very great. | D37: 0 | E37: T
A38: 29 | B38: Boeing has less inventory (as a % of sales) than Procter & Gamble. | D38: 0 | E38: F
A39: 30 | B39: Industrial companies usually invest more in FA than commercial companies (in proportion to net assets). | D39: 0 | E39: T
A40: 31 | B40: Financial expenses and amortization are usually the most relevant expense in the P&L. | D40: 0 | E40: F
A41: 32 | B41: The most useful tool for diagnosis is usually the difference in balances. | D41: 0 | E41: T
A42: 33 | B42: If a company needs money it can only be because it has not made an adequate profit. | D42: 0 | E42: F
A43: 34 | B43: Whenever NFOs grow we need more debt (whether short or long). | D43: 0 | E43: F
A44: 35 | B44: If the company has a powerful profit, it will be able to invest more in FA and NFO. | D44: 0 | E44: T
A45: 36 | B45: The NA increment always has to be equal to the D+Equity increment. | D45: 0 | E45: T
A46: 37 | B46: A powerful company will be able to pay suppliers later and therefore can have smaller NFO%. | D46: 0 | E46: T
A47: 38 | B47: And if they collecy cash the NFO% could be even negative. | D47: 0 | E47: T
A48: 39 | B48: The FA is always greater than NFO, since the investment in a factory or a warehouse is always greater than the investment in customers. | D48: 0 | E48: F
A49: 40 | B49: Current assets must always be financed with short term debt and the FA with long term debt. | D49: 0 | E49: F
B52: TOTAL CALIFICACION OBTENIDA | D52: =SUM(D9:D49) -> 0
B53: Máxima calificación posible | D53: 40

Sheet Preguntas (hidden)
B1: Cap 1. Preguntas de autoevaluación
B2: Contesta el siguiente cuestionario. Escribe tus respuestas en la columna C. V o F (verdadero o falso). | H2: 1 | I2: F | J2: 6 | K2: V | L2: 11 | M2: V | N2: 16 | O2: V | P2: 21 | Q2: V | R2: 26 | S2: F | T2: 31 | U2: F | V2: 36 | W2: V
B3: Comprueba tus respuestas pinchando en el 2 con recuadro de la esquina superior izquierda; o en la cruz con recuadro encima de la columna F. | H3: 2 | I3: V | J3: 7 | K3: F | L3: 12 | M3: F | N3: 17 | O3: V | P3: 22 | Q3: V | R3: 27 | S3: V | T3: 32 | U3: V | V3: 37 | W3: V
B4: Se desplegará la columna E con la respuesta correcta. Si tienes menos de 30 puntos se recomienda repasar el Cap 1. | H4: 3 | I4: F | J4: 8 | K4: F | L4: 13 | M4: V | N4: 18 | O4: V | P4: 23 | Q4: F | R4: 28 | S4: V | T4: 33 | U4: F | V4: 38 | W4: V
B5: Respuesta correcta = 1 punto. No respuesta = 0 puntos. Respuesta incorrecta = | C5: 0 | H5: 4 | I5: V | J5: 9 | K5: V | L5: 14 | M5: V | N5: 19 | O5: V | P5: 24 | Q5: F | R5: 29 | S5: F | T5: 34 | U5: F | V5: 39 | W5: F
B6: © IESE. E.M. Abascal 2023. Versión 26/9/23 | H6: 5 | I6: V | J6: 10 | K6: F | L6: 15 | M6: V | N6: 20 | O6: F | P6: 25 | Q6: V | R6: 30 | S6: V | T6: 35 | U6: V | V6: 40 | W6: F
C7: Respuestas | D7: Calificación | E7: Respuesta
B8: PREGUNTAS | C8: V o F | D8: Obtenida | E8: Correcta
A9: 1 | B9: Cuando analizamos ventas miramos sólo al tamaño, estacionalidad y si las ventas son cíclicas. | D9: =IF(C9="",0,IF(C9=E9,1,$C$5)) -> 0 | E9: F
A10: =A9+1 -> 2 | B10: Margen% = (Ventas – CMV)/ Ventas. | D10: =IF(C10="",0,IF(C10=E10,1,$C$5)) -> 0 | E10: V
A11: =A10+1 -> 3 | B11: Cuando la competencia es grande, el margen% suele ser también grande. | D11: 0 | E11: F
A12: 4 | B12: Para incrementar el margen% puedes subir precios o bajar CMV%. | D12: 0 | E12: V
A13: 5 | B13: La mayoría de las veces el margen% es el principal motor del beneficio. | D13: 0 | E13: V
A14: 6 | B14: EBITDA% = margen% − opex%. | D14: 0 | E14: V
A15: 7 | B15: NOF = activo corriente – pasivo corriente. | D15: 0 | E15: F
A16: 8 | B16: Si las ventas son estacionales el FM también lo es. | D16: 0 | E16: F
A17: 9 | B17: La diferencia NOF – FM se cubre con crédito. | D17: 0 | E17: V
A18: 10 | B18: La diferencia NOF – FM se puede cubrir también con recursos propios. | D18: 0 | E18: F
A19: 11 | B19: FM = Equity + Deuda a largo −AF. | D19: 0 | E19: V
A20: =A19+1 -> 12 | B20: NOF es siempre un porcentaje de ventas, que nunca cambia. | D20: 0 | E20: F
A21: 13 | B21: El activo neto (AN) tiene dos componentes: NOF y AF. | D21: 0 | E21: V
A22: 14 | B22: El activo neto (AN) se financia sólo con deuda y recursos propios. | D22: 0 | E22: V
A23: 15 | B23: Si el FM es mayor que las NOF la diferencia estará en crédito. | D23: 0 | E23: V
A24: 16 | B24: Si deuda + recursos propios es mayor que activo neto la diferencia estará en caja. | D24: 0 | E24: V
A25: 17 | B25: En general una disminución de activo es un aumento de caja. | D25: 0 | E25: V
A26: 18 | B26: Si cancelas un activo de tu balance (por obsoleto), no hay generación de caja pero sí disminución de beneficios. | D26: 0 | E26: V
A27: 19 | B27: Si tus ventas aumentan un 20% y tus NOF% no cambian tus NOF$ aumentan un 20%. | D27: 0 | E27: V
A28: 20 | B28: Si tienes mucha caja excedente tus NOF serán muy grandes. | D28: 0 | E28: F
A29: 21 | B29: Venta mensual (uniforme) = 100€. En Clientes hay 200€, por tanto cobras a 60 días. | D29: 0 | E29: V
A30: 22 | B30: Los días de cobro suben a 120 días, por tanto tendrás 400€ en clientes. | D30: 0 | E30: T
A31: 23 | B31: Empresa comercial. Venta mensual (uniforme) = 100€. CMV = 80%. Existencias = 100€.,por tanto los días de existencias son 30. | D31: 0 | E31: F
B32: Para las preguntas siguientes. Ventas estacionales. Enero 300, febrero 400, marzo 100, abril 50. | D32: 0
A33: 24 | B33: En clientes en marzo tenemos 700€. Por tanto cobramos a 60 días. | D33: 0 | E33: F
A34: 25 | B34: En clientes en marzo tenemos 300€. Por tanto cobramos a 45 días. | D34: 0 | E34: v
A35: 26 | B35: Tienes pocos y poderosos clientes. Como consecuencia tendrás un margen% alto. | D35: 0 | E35: F
A36: 27 | B36: Tienes muchos clientes y pequeños. Como consecuencia tendrás un margen% más alto, pero también costes de distribución más altos. | D36: 0 | E36: V
A37: 28 | B37: El producto que vendes es una commodity. En la mayoría de los casos la competencia será muy grande. | D37: 0 | E37: V
A38: 29 | B38: Boeing tiene menos existencias (en % sobre ventas) que Procter& Gamble. | D38: 0 | E38: F
A39: 30 | B39: Habitualmente las empresas industriales invierten más en AF que las comerciales (en proporción sobre activo neto). | D39: 0 | E39: V
A40: 31 | B40: Gastos financieros y amortizacion suelen ser el gasto más relevante en la PyG. | D40: 0 | E40: F
A41: 32 | B41: La herramienta más util para el diagnóstico suele ser la diferencia de balances. | D41: 0 | E41: V
A42: 33 | B42: Si una empresa necesita dinero solo puede ser por que no ha tenido un beneficio adecuado. | D42: 0 | E42: F
A43: 34 | B43: Siempre que las NOF crecen necesitamos más deuda (sea a corto o largo). | D43: 0 | E43: F
A44: 35 | B44: Si la empresa tiene un beneficio potente, podrá invertir más en AF y NOF. | D44: 0 | E44: V
A45: 36 | B45: El incremento de AN siempre tiene que ser igual al incremento de D+Equity. | D45: 0 | E45: V
A46: 37 | B46: Una empresa potente podrá pagar más tarde a proveedores y por tanto puede tner NOF% más pequeñas. | D46: 0 | E46: V
A47: 38 | B47: Y si cobra al contado las NOF% podrían ser negativas. | D47: 0 | E47: V
A48: 39 | B48: El AF es siempre mayor que NOF, pues la inversión en una fábrica o una nave es siempre mayor que la inversión en clientes. | D48: 0 | E48: F
A49: 40 | B49: El circulante hay que financiarlo siempre con deuda a corto y el AF con deuda a largo. | D49: 0 | E49: F
B52: TOTAL CALIFICACION OBTENIDA | D52: =SUM(D9:D49) -> 0
B53: Máxima calificación posible | D53: 40

Sheet Perguntas (hidden)
B1: Capítulo 1. Perguntas de Autoavaliação
B2: Responda ao seguinte questionário. Escreva suas respostas na coluna C. V ou F (verdadeiro ou falso). | H2: 1 | I2: F | J2: 6 | K2: V | L2: 11 | M2: V | N2: 16 | O2: V | P2: 21 | Q2: V | R2: 26 | S2: F | T2: 31 | U2: F | V2: 36 | W2: V
B3: Verifique suas respostas clicando no "2" com o quadro no canto superior esquerdo; ou na cruz com o quadro acima da coluna F. | H3: 2 | I3: V | J3: 7 | K3: F | L3: 12 | M3: F | N3: 17 | O3: V | P3: 22 | Q3: F | R3: 27 | S3: V | T3: 32 | U3: V | V3: 37 | W3: V
B4: A coluna E será exibida com a resposta correta. Se você tiver menos de 30 pontos, é recomendável revisar o Capítulo 1. | H4: 3 | I4: F | J4: 8 | K4: F | L4: 13 | M4: V | N4: 18 | O4: V | P4: 23 | Q4: F | R4: 28 | S4: V | T4: 33 | U4: F | V4: 38 | W4: V
B5: Resposta correta = 1 ponto. Sem resposta = 0 pontos. Resposta incorreta = | C5: 0 | H5: 4 | I5: V | J5: 9 | K5: V | L5: 14 | M5: F | N5: 19 | O5: V | P5: 24 | Q5: F | R5: 29 | S5: F | T5: 34 | U5: F | V5: 39 | W5: F
B6: © IESE. E.M. Abascal 2023. Versão 26/9/23 | H6: 5 | I6: V | J6: 10 | K6: F | L6: 15 | M6: V | N6: 20 | O6: F | P6: 25 | Q6: v | R6: 30 | S6: V | T6: 35 | U6: V | V6: 40 | W6: F
C7: Respostas | D7: Pontuação
B8: PREGUNTAS | C8: V ou F | D8: Obtida
A9: 1 | B9: Quando analisamos vendas, olhamos apenas para o tamanho, sazonalidade e se as vendas são cíclicas. | D9: =IF(C9="",0,IF(C9=E9,1,$C$5)) -> 0 | E9: F
A10: =A9+1 -> 2 | B10: Margem% = (Vendas – CMV) / Vendas. | D10: 0 | E10: V
A11: 3 | B11: Quando a concorrência é grande, a margem% costuma ser grande também. | D11: 0 | E11: F
A12: 4 | B12: Para aumentar a margem%, você pode aumentar os preços ou diminuir o CMV%. | D12: 0 | E12: V
A13: 5 | B13: Na maioria das vezes, a margem% é o principal motor do lucro. | D13: 0 | E13: V
A14: 6 | B14: EBITDA% = margem% − Opex%. | D14: 0 | E14: V
A15: 7 | B15: NOF = ativo circulante – passivo circulante. | D15: 0 | E15: F
A16: 8 | B16: Se as vendas são sazonais, o CG também é. | D16: 0 | E16: F
A17: 9 | B17: A diferença NOF –CG é coberta com crédito. | D17: 0 | E17: V
A18: 10 | B18: A diferença NOF – CG também pode ser coberta com recursos próprios (PL).. | D18: 0 | E18: F
A19: 11 | B19: CG = PL + Dívida de Longo Prazo − AF. | D19: 0 | E19: V
A20: 12 | B20: NOF é sempre uma porcentagem das vendas, que nunca muda. | D20: 0 | E20: F
A21: 13 | B21: O Ativo Líquido (AL) tem dois componentes: NOF e AF. | D21: 0 | E21: V
A22: 14 | B22: O Ativo Líquido (AL) é financiado apenas com dívida e recursos próprios (PL). | D22: 0 | E22: F
A23: 15 | B23: Se o CG é maior que as NOF, a diferença estará em crédito. | D23: 0 | E23: V
A24: 16 | B24: Se dívida + recursos próprios (PL) é maior que ativo líquido, a diferença estará no Caixa. | D24: 0 | E24: V
A25: 17 | B25: Em geral, uma diminuição do ativo é um aumento de caixa. | D25: 0 | E25: V
A26: 18 | B26: Se você cancela um ativo do seu balanço (por obsolescência), não há geração de caixa, mas há redução de lucros. | D26: 0 | E26: V
A27: 19 | B27: Se suas vendas aumentam 20% e suas NOF% não muda, suas NOF$ aumentam 20%. | D27: 0 | E27: V
A28: 20 | B28: Se você tem muito caixa excedente, suas NOF serão muito grandes. | D28: 0 | E28: F
A29: 21 | B29: Venda mensal (uniforme) = €100. Em Clientes, há €200, então você recebe em 60 dias. | D29: 0 | E29: V
A30: 22 | B30: Os dias de recebimento aumentam para 120 dias, então você terá €400 em Clientes. | D30: 0 | E30: F
A31: 23 | B31: Empresa comercial. Venda mensal (uniforme) = €100. CMV = 80%. Estoques =€100, então os Dias de Estoque são 30. | D31: 0 | E31: F
B32: Para as próximas perguntas. Vendas sazonais. Janeiro 300, fevereiro 400, março 100, abril 50. | D32: 0
A33: 24 | B33: Em Clientes, em março, temos €700. Portanto, recebemos em 60 dias. | D33: 0 | E33: F
A34: =A33+1 -> 25 | B34: Em clientes, em março, temos €300. Portanto, recebemos em 45 dias. | D34: 0 | E34: v
A35: 26 | B35: Você tem poucos e poderosos clientes. Como consequência, terá uma margem% alta. | D35: 0 | E35: F
A36: 27 | B36: Você tem muitos clientes pequenos. Como consequência, terá uma margem% mais alta, mas também custos de distribuição mais altos. | D36: 0 | E36: V
A37: 28 | B37: O produto que você vende é uma Commodity. Na maioria dos casos, a concorrência será muito grande. | D37: 0 | E37: V
A38: 29 | B38: A Boeing tem menos estoques (em % sobre vendas) do que a Procter & Gamble. | D38: 0 | E38: F
A39: 30 | B39: Normalmente, as empresas industriais investem mais em AF do que as comerciais (em proporção do Ativo Líquido). | D39: 0 | E39: V
A40: 31 | B40: Despesas financeiras e depreciação costumam ser o gasto mais relevante no DRE. | D40: 0 | E40: F
A41: 32 | B41: A ferramenta mais útil para o diagnóstico geralmente é a diferença de balanços. | D41: 0 | E41: V
A42: 33 | B42: Se uma empresa precisa de dinheiro, pode ser porque não teve lucro adequado. | D42: 0 | E42: F
A43: 34 | B43: Sempre que as NOF crescem, precisamos de mais dívida (seja de curto ou longo prazo). | D43: 0 | E43: F
A44: 35 | B44: Se a empresa tem um lucro robusto, pode investir mais em AF e NOF. | D44: 0 | E44: V
A45: 36 | B45: O aumento do AL deve sempre ser igual ao aumento de Dívida + Patrimônio Líquido. | D45: 0 | E45: V
A46: 37 | B46: Uma empresa robusta pode pagar mais tarde aos fornecedores e, portanto, pode ter um NOF% menor. | D46: 0 | E46: V
A47: 38 | B47: E se cobrar à vista, o NOF% pode ser negativo. | D47: 0 | E47: V
A48: 39 | B48: O AF é sempre maior que as NOF, pois o investimento em uma fábrica ou um armazém é sempre maior do que o investimento em Clientes. | D48: 0 | E48: F
A49: 40 | B49: O Ativo Circulante deve sempre ser financiado com dívida de curto prazo e o AF com dívida de longo prazo. | D49: 0 | E49: F
B52: PONTUAÇÃO TOTAL OBTIDA | D52: =SUM(D9:D49) -> 0
B53: Pontuação Máxima Possível | D53: 40
